bitfinex-derivatives/quotes_ETHF0:USTF0_20260113
["timestamp","ask_amount","ask_price","bid_price","bid_amount"]
[1768304554409,0.0031074,3134.8,3134.1,1.0900676]
[1768304563525,0.0031074,3134.8,3134.1,3.94459533]
[1768304565223,0.0031074,3134.8,3134.1,2.85807001]
[1768304565427,0.0031074,3134.8,3134.1,3.94459533]
[1768304565628,0.0031074,3134.8,3134.1,1.0900676]
[1768304567431,0.0031074,3134.8,3134.1,3.94459533]
[1768304571531,0.0031074,3134.8,3134.3,1.08652532]
[1768304571728,1.08652532,3135.3,3134.3,1.08652532]
[1768304572934,1.08922615,3135.3,3134.3,1.08652532]
[1768304574136,1.08922615,3135.3,3134.4,1.08652532]
[1768304574437,1.08922615,3135.3,3134.3,1.08652532]
[1768304574634,1.08652532,3135.1,3134.3,1.08652532]
[1768304576247,0.00270083,3135.3,3134.3,1.08652532]
[1768304576538,1.08922615,3135.3,3134.3,1.08652532]
[1768304576741,1.08922615,3135.3,3134.5,1.08652532]
[1768304578940,0.00270083,3135.3,3134.5,1.08652532]
[1768304581042,1.08652532,3135.2,3134.3,1.08652532]
[1768304582136,1.08652532,3135.2,3134.2,2.85452773]
[1768304582331,1.08652532,3135.2,3134.3,1.08652532]
[1768304582940,0.00270083,3135.3,3134.3,1.08652532]
[1768304583239,1.08652532,3135.2,3134.3,1.08652532]
[1768304586949,1.08652532,3135.7,3134.9,1.08652532]
[1768304587338,1.08652532,3135.5,3134.7,1.08652532]
[1768304587540,1.08652532,3135.5,3134.5,1.08652532]
[1768304588042,1.09032314,3135.5,3134.5,1.08652532]
[1768304588344,1.09032314,3135.5,3134.7,1.08652532]
[1768304591745,1.09032314,3135.5,3134.5,1.08652532]
[1768304591947,1.08652532,3135.3,3134.5,1.08652532]
[1768304593445,0.14057787,3135.4,3134.3,3.01421773]
[1768304594249,0.14057787,3135.4,3134.4,1.08692047]
[1768304599055,0.00379782,3135.5,3134.4,1.08692047]
[1768304600147,0.00379782,3135.5,3134.3,3.01421773]
[1768304600347,0.00379782,3135.5,3134.4,1.08692047]
[1768304600956,0.00379782,3135.5,3134.3,3.01421773]
[1768304601254,0.00379782,3135.5,3134.3,4.1011382]
[1768304602860,0.13623409,3135.5,3134.3,4.1011382]
[1768304603053,0.13623409,3135.5,3134.3,3.01421773]
[1768304609961,0.13243627,3135.3,3134.3,3.01421773]
[1768304610154,0.13243627,3135.3,3134.3,0.15969]
[1768304612259,0.13243627,3135.3,3134.2,2.85452773]
[1768304612453,1.08692047,3135.1,3134.2,2.85452773]
[1768304612654,1.21935674,3135.3,3134.2,2.85452773]
[1768304615270,0.13243627,3135.3,3134.3,0.15969]
[1768304615566,0.14939866,3135.5,3134.3,0.15969]
[1768304615759,1.08692047,3135.3,3134.3,0.15969]
[1768304616363,0.14560084,3135.2,3134.3,0.15969]
[1768304619068,1.08692047,3135.1,3134.3,0.15969]
[1768304621670,1.08692047,3135.1,3134.1,0.00354228]
[1768304622663,1.23252131,3135.1,3134.1,0.00354228]
[1768304625071,0.14560084,3135.0,3134.1,0.00354228]
[1768304625773,1.08692047,3134.9,3134.1,0.00354228]
[1768304626570,1.23252131,3134.9,3134.1,0.00354228]
[1768304628166,0.14560084,3134.9,3134.1,0.00354228]
[1768304630972,1.23252131,3135.3,3134.1,0.16325228]
[1768304633272,1.08692047,3134.8,3134.1,0.16325228]
[1768304633670,1.23252131,3135.0,3134.1,0.16325228]
[1768304640778,0.14560084,3135.0,3134.1,0.16325228]
[1768304644481,1.23252131,3135.4,3134.2,0.1597]
[1768304644673,1.225303,3135.2,3134.2,0.1597]
[1768304644875,0.13838253,3135.1,3134.2,0.1597]
[1768304653283,1.0871976,3134.9,3134.2,0.1597]
[1768304653886,1.0871976,3134.9,3134.1,0.00354228]
[1768304657385,1.23046365,3134.9,3134.1,0.00354228]
[1768304659689,1.0871976,3134.5,3134.1,0.00354228]
[1768304659988,0.0871976,3134.5,3133.8,0.15972]
[1768304660390,0.0871976,3134.5,3133.8,1.2469176]
[1768304660786,0.0871976,3134.5,3133.8,1.25063185]
[1768304660981,1.0871976,3134.6,3133.8,1.25063185]
[1768304661188,1.0871976,3134.6,3133.8,0.16343425]
[1768304665194,0.14326605,3134.8,3133.9,1.0871976]
[1768304669694,1.23046365,3134.7,3133.8,0.16343425]
[1768304669880,1.0871976,3134.5,3133.8,0.16343425]
[1768304670190,1.23046365,3134.5,3133.8,0.16343425]
[1768304676900,0.14326605,3134.5,3133.8,0.16343425]
[1768304677798,1.23046365,3134.5,3133.8,0.16343425]
[1768304678100,0.1419888,3134.4,3133.8,0.00371425]
[1768304690708,0.1419888,3134.2,3133.4,1.0871976]
[1768304691710,0.1419888,3134.2,3133.4,1.08984079]
[1768304698020,0.1419888,3134.2,3133.5,1.0871976]
[1768304702721,1.2291864,3134.2,3133.4,1.08984079]
[1768304707723,1.2291864,3134.2,3133.4,0.00264319]
[1768304708021,1.0871976,3134.0,3133.4,0.00264319]
[1768304708618,1.0871976,3133.8,3133.4,0.00264319]
[1768304708824,0.14380686,3133.7,3132.9,1.0871976]
[1768304709023,1.23100446,3133.6,3132.8,4.17867214]
[1768304709322,1.23100446,3133.6,3132.8,0.15977]
[1768304709524,0.14380686,3133.6,3132.8,0.15977]
[1768304709718,0.14380686,3133.6,3132.9,1.0871976]
[1768304709915,0.14380686,3133.3,3132.9,0.00275038]
[1768304710118,0.14380686,3133.3,3132.8,0.15977]
[1768304710119,0.14628374,3133.3,3132.8,0.15977]
[1768304711118,0.14628374,3133.3,3132.8,0.16235739]
[1768304711320,0.00247688,3133.3,3132.8,0.16235739]
[1768304714219,0.14628374,3133.3,3132.8,0.16235739]
[1768304714424,0.14628374,3133.3,3132.8,1.24955499]
[1768304715226,0.00247688,3133.3,3132.8,1.24955499]
[1768304715429,0.00247688,3133.3,3132.8,0.16235739]
[1768304718333,0.00247688,3133.3,3132.8,0.00258739]
[1768304718532,0.13592592,3133.3,3132.8,0.00258739]
[1768304718834,0.13592592,3133.3,3132.3,2.47707803]
[1768304719633,0.13592592,3133.3,3132.3,2.48105593]
[1768304720333,0.00247688,3133.3,3132.5,1.08807803]
[1768304722230,0.00247688,3133.3,3132.4,1.08807803]
[1768304722530,0.00247688,3133.3,3132.3,1.5527779]
[1768304722728,0.00247688,3133.3,3132.3,2.64085593]
[1768304723935,0.00247688,3133.3,3132.3,1.5527779]
[1768304724129,0.00247688,3133.3,3132.4,1.08807803]
[1768304725228,0.00247688,3133.3,3132.3,1.3929779]
[1768304725433,0.00247688,3133.3,3132.6,1.08807803]
[1768304728137,0.00247688,3133.3,3132.5,0.15979]
[1768304729938,0.13592592,3133.3,3132.3,0.0039779]
[1768304730827,0.00247688,3133.3,3132.4,1.08807803]
[1768304737743,0.00247688,3133.3,3132.3,0.0039779]
[1768304738035,0.14639083,3133.3,3132.3,0.0039779]
[1768304743941,0.14391395,3133.1,3132.3,0.0039779]
[1768304758150,0.14391395,3133.7,3133.0,1.08807803]
[1768304758348,0.14391395,3134.9,3133.4,1.08807803]
[1768304758542,0.90353498,3134.8,3134.1,1.08807803]
[1768304758747,0.14391395,3135.7,3132.9,4.01890214]
[1768304758941,0.90377623,3135.6,3133.6,0.12454636]
[1768304759146,0.0023255,3135.6,3133.6,0.12454636]
[1768304759454,0.14623945,3135.6,3133.5,0.15973]
[1768304759652,0.14391395,3135.4,3133.2,4.01890214]
[1768304759853,1.23199198,3134.7,3133.2,2.12607803]
[1768304760146,0.14391395,3134.7,3133.2,2.12607803]
[1768304761848,0.14391395,3134.7,3132.8,0.12454636]
[1768304762041,0.14391395,3134.7,3133.1,1.08807803]
[1768304763452,0.14391395,3134.7,3133.3,1.08807803]
[1768304763952,0.14391395,3134.7,3133.5,1.08807803]
[1768304766052,0.13431511,3135.5,3134.2,1.08807803]
[1768304766247,1.22239314,3135.2,3133.8,1.08807803]
[1768304766550,1.08807803,3135.0,3133.5,1.20134509]
[1768304766749,0.13431511,3135.1,3134.0,1.08807803]
[1768304767257,0.13431511,3135.1,3133.8,1.08807803]
[1768304767448,1.22239314,3135.0,3133.5,1.08807803]
[1768304767654,1.08807803,3134.7,3133.5,1.388]
[1768304768354,0.13431511,3134.9,3133.5,1.388]
[1768304768656,0.13431511,3134.9,3133.5,1.54773]
[1768304770553,0.13431511,3134.9,3133.5,0.15973]
[1768304771152,1.22239314,3134.8,3133.5,0.15973]
[1768304773157,1.22239314,3134.8,3133.5,1.24780803]
[1768304773356,0.13431511,3134.8,3133.5,1.24780803]
[1768304775366,1.08740065,3134.6,3133.8,1.08740065]
[1768304778467,0.13431511,3134.8,3133.8,1.08740065]
[1768304778671,1.08740065,3134.7,3133.8,1.08740065]
[1768304782479,0.13431511,3134.8,3133.8,1.08740065]
[1768304782775,1.08740065,3134.7,3133.8,1.08740065]
[1768304785179,1.22171576,3134.8,3134.0,1.08740065]
[1768304788578,1.08740065,3135.0,3134.2,1.08740065]
[1768304788770,1.22216818,3135.2,3134.2,1.08740065]
[1768304789372,1.08740065,3135.0,3134.2,1.08740065]
[1768304789779,1.08740065,3135.0,3133.8,0.15972]
[1768304789980,1.08740065,3135.0,3134.1,1.08740065]
[1768304792082,1.08740065,3135.1,3134.3,1.08740065]
[1768304794389,0.13476753,3135.2,3134.3,1.08740065]
[1768304794584,1.08740065,3135.0,3134.3,1.08740065]
[1768304797689,0.13476753,3135.2,3134.3,1.08740065]
[1768304797892,1.08740065,3135.0,3134.3,1.08740065]
[1768304799189,1.22216818,3135.2,3134.3,1.08740065]
[1768304799492,0.13476753,3135.2,3134.3,1.08740065]
[1768304800697,1.08740065,3135.1,3134.3,1.08740065]
[1768304803094,1.08740065,3135.1,3134.2,1.08740065]
[1768304803794,1.08740065,3135.1,3134.0,0.15971]
[1768304803994,1.23249788,3135.1,3134.1,1.08740065]
[1768304804296,1.08740065,3134.9,3134.1,1.08740065]
[1768304807001,0.14509723,3135.1,3134.1,1.08740065]
[1768304807191,1.08740065,3135.0,3134.1,1.08740065]
[1768304815495,0.14509723,3134.9,3134.0,0.15971]
[1768304815697,1.08740065,3134.2,3133.6,1.385]
[1768304815903,1.08740065,3134.2,3133.5,4.01890214]
[1768304816101,1.23249788,3134.4,3133.5,1.08740065]
[1768304817711,0.14509723,3133.6,3133.2,4.01890214]
[1768304818006,0.14509723,3133.6,3132.8,0.15977]
[1768304818007,0.14509723,3133.6,3132.8,1.08740065]
[1768304819107,0.14509723,3133.6,3133.0,1.08740065]
[1768304819309,0.14509723,3134.0,3133.2,1.08740065]
[1768304821201,0.14509723,3134.0,3133.4,1.08740065]
[1768304822315,0.14509723,3134.0,3133.3,1.08740065]
[1768304826018,0.14509723,3134.0,3132.7,0.15978]
[1768304826220,0.14509723,3134.0,3133.2,1.08740065]
[1768304831120,1.08740065,3134.2,3133.4,1.08740065]
[1768304831320,1.08740065,3134.3,3133.4,1.08740065]
[1768304837339,0.13914467,3134.4,3133.1,1.08770423]
[1768304839544,0.14336669,3134.9,3133.9,1.08770423]
[1768304840042,0.14336669,3134.9,3133.7,1.08770423]
[1768304847854,0.14336669,3135.3,3133.9,1.08770423]
[1768304848051,0.14336669,3135.2,3133.9,1.08770423]
[1768304848256,0.14336669,3135.2,3133.7,1.08770423]
[1768304848446,1.23107092,3135.1,3133.7,1.08770423]
[1768304849147,0.14336669,3135.0,3133.6,1.24743423]
[1768304851056,0.14336669,3135.0,3133.8,1.08770423]
[1768304851259,0.14336669,3135.0,3133.6,1.24743423]
[1768304857860,0.14336669,3135.0,3133.7,0.15973]
[1768304863063,0.14336669,3135.0,3133.7,1.24743423]
[1768304870970,0.14336669,3135.0,3133.7,0.15973]
[1768304871173,0.14336669,3135.0,3133.7,1.24743423]
[1768304881780,1.08770423,3134.8,3133.7,0.15973]
[1768304881979,0.13972242,3134.8,3133.7,0.15973]
[1768304895588,1.2317729,3135.2,3133.7,0.15973]
[1768304895782,1.04503352,3135.1,3133.7,0.15973]
[1768304895983,0.90742421,3135.0,3133.7,0.15973]
[1768304896185,0.13760931,3135.1,3133.7,0.15973]
[1768304896383,0.90741657,3135.0,3133.7,0.15973]
[1768304896583,0.13760931,3135.1,3133.7,0.15973]
[1768304896778,1.04502667,3135.0,3133.7,0.15973]
[1768304896982,0.13760931,3135.0,3133.7,0.15973]
[1768304897386,1.08733076,3134.9,3133.9,1.08733076]
[1768304898691,0.13760931,3135.0,3133.9,1.08733076]
[1768304898892,1.08733076,3134.9,3133.9,1.08733076]
[1768304901301,1.22494007,3134.9,3133.7,0.15973]
[1768304901495,1.22494007,3134.9,3133.8,1.08733076]
[1768304905707,0.13760931,3134.9,3133.8,1.08733076]
[1768304905909,1.22494007,3134.9,3133.8,1.08733076]
[1768304906206,1.22494007,3134.9,3134.0,1.08733076]
[1768304919126,0.0023255,3135.6,3133.8,1.08733076]
[1768304919319,6.475,3136.8,3135.2,1.08733076]
[1768304919320,1.08733076,3136.2,3135.2,1.08733076]
[1768304919516,1.08733076,3135.6,3134.6,1.08733076]
[1768304919820,1.08733076,3135.2,3134.5,0.15968]
[1768304920124,0.15959,3136.4,3134.1,1.388]
[1768304920329,1.43391964,3136.3,3134.1,1.39123702]
[1768304920628,1.27432964,3136.2,3134.1,0.00323702]
[1768304920929,1.27432964,3136.1,3134.1,0.00323702]
[1768304921125,1.08733076,3135.3,3134.3,1.08733076]
[1768304922617,1.08733076,3135.3,3134.5,1.08733076]
[1768304923630,1.08733076,3135.4,3134.5,1.08733076]
[1768304926031,1.08733076,3135.4,3134.4,1.08733076]
[1768304927843,1.08733076,3135.4,3134.6,1.08733076]
[1768304928132,1.08733076,3135.4,3134.1,0.16294702]
[1768304928340,1.08733076,3135.4,3134.6,1.08733076]
[1768304931227,0.1352549,3135.3,3134.1,0.16294702]
[1768304931431,1.08733076,3134.3,3133.5,0.15974]
[1768304931825,1.08733076,3134.7,3133.6,1.08733076]
[1768304932536,1.08733076,3134.7,3133.6,1.09060894]
[1768304932737,1.22258566,3134.8,3133.8,1.08733076]
[1768304941141,1.08733076,3134.8,3134.0,1.08733076]
[1768304941640,1.08733076,3134.8,3133.6,0.00327818]
[1768304941934,0.1352549,3135.2,3134.1,1.08733076]
[1768304942140,1.08733076,3135.5,3134.5,1.08733076]
[1768304943642,1.08733076,3135.3,3134.5,1.08733076]
[1768304944841,1.08733076,3135.3,3134.0,0.29907775]
[1768304945044,1.08733076,3135.3,3134.4,1.08733076]
[1768304946839,1.08733076,3135.5,3134.4,1.08733076]
[1768304948445,1.08733076,3135.3,3134.4,1.08733076]
[1768304951550,1.08733076,3135.3,3134.0,0.29907775]
[1768304951851,1.08733076,3135.3,3134.4,1.08733076]
[1768304955352,1.08733076,3135.3,3134.0,0.29907775]
[1768304955650,1.08733076,3135.3,3134.4,1.08733076]
[1768304956653,1.08733076,3134.6,3133.6,0.00327818]
[1768304956956,1.08733076,3134.6,3133.7,1.08733076]
[1768304957347,1.08733076,3134.4,3133.6,0.00327818]
[1768304957855,1.08733076,3134.2,3133.2,1.08733076]
[1768304958241,0.13426695,3134.3,3133.4,1.08733076]
[1768304958951,0.13810306,3134.3,3133.4,1.09127118]
[1768304959359,0.13810306,3134.3,3133.4,0.00394042]
[1768304960356,0.00383611,3134.3,3133.4,0.00394042]
[1768304962345,0.00383611,3134.3,3133.5,1.08764102]
[1768304963255,0.00383611,3134.3,3133.4,0.00394042]
[1768304963858,0.00383611,3134.3,3133.6,1.08764102]
[1768304967260,0.00383611,3134.3,3133.4,1.09158144]
[1768304967958,0.00383611,3134.3,3133.4,0.00394042]
[1768304969048,0.13810306,3134.3,3133.4,0.00394042]
[1768304969249,0.13426695,3134.1,3133.4,0.00394042]
[1768304971256,0.00383611,3134.3,3133.4,0.00394042]
[1768304980470,0.00383611,3134.3,3133.4,1.09158144]
[1768304980965,0.00383611,3134.3,3133.4,0.00394042]
[1768304986772,0.00383611,3134.3,3133.6,1.08764102]
[1768304987164,0.13235811,3135.0,3133.6,1.22551388]
[1768304987478,0.91993294,3134.9,3133.6,1.22551388]
[1768304987783,0.13235811,3135.0,3133.6,1.22551388]
[1768304987985,0.91994665,3134.9,3133.6,1.22551388]
[1768304988184,0.00376838,3134.9,3133.6,1.22551388]
[1768305001194,0.00376838,3134.9,3133.7,0.13787286]
[1768305001399,0.00376838,3134.9,3134.1,1.08764102]
[1768305001598,0.00376838,3134.9,3133.9,1.08764102]
[1768305002392,0.00376838,3134.9,3133.7,0.15972]
[1768305002598,1.08764102,3134.6,3133.4,0.00394042]
[1768305003284,1.21999913,3134.6,3133.4,0.00394042]
[1768305004589,0.13235811,3134.5,3133.4,0.00394042]
[1768305007395,0.13902342,3134.9,3133.4,0.00394042]
[1768305007599,1.05460489,3134.8,3133.4,0.00394042]
[1768305007796,0.91934985,3134.7,3133.4,0.00394042]
[1768305009700,1.05460489,3134.7,3133.4,0.00394042]
[1768305009898,0.13525504,3134.7,3133.4,0.00394042]
[1768305016112,0.13936557,3134.5,3133.4,0.00394042]
[1768305016406,0.13936557,3134.4,3133.4,0.00394042]
[1768305019406,1.08773538,3134.2,3133.4,0.00394042]
[1768305020007,1.22710095,3134.2,3133.4,0.00394042]
[1768305031517,0.13936557,3134.2,3133.4,0.00394042]
[1768305031718,1.22710095,3134.2,3133.4,0.00394042]
[1768305044425,0.00376838,3134.9,3133.4,0.00394042]
[1768305044426,1.08773538,3134.0,3133.4,0.00394042]
[1768305044626,1.23068214,3134.0,3132.7,4.17868214]
[1768305044824,1.23068214,3134.0,3133.1,1.08773538]
[1768305045329,1.23068214,3134.0,3133.2,1.08773538]
[1768305045626,1.23068214,3134.0,3133.2,1.09069157]
[1768305050637,0.14294676,3134.0,3133.2,1.09069157]
[1768305051727,1.08773538,3134.1,3133.2,1.09069157]
[1768305053133,0.14294676,3134.4,3133.2,1.09069157]
[1768305053334,1.08773538,3134.2,3133.2,1.09069157]
[1768305062350,1.08773538,3134.2,3133.4,1.08773538]
[1768305063049,0.14294676,3134.4,3133.4,1.08773538]
[1768305063248,0.14294676,3134.4,3133.6,1.08773538]
[1768305063553,1.23068214,3134.4,3133.6,1.08773538]
[1768305064746,0.14355543,3134.8,3133.8,1.08773538]
[1768305064941,0.91875905,3134.7,3134.0,1.08773538]
[1768305065248,1.09150376,3134.9,3134.0,1.08773538]
[1768305066856,1.09150376,3134.9,3133.9,1.08773538]
[1768305067059,1.08773538,3134.5,3133.4,0.30480801]
[1768305067354,1.08773538,3134.5,3133.5,1.08773538]
[1768305069754,0.14355543,3134.8,3133.5,1.08773538]
[1768305069955,1.08773538,3134.5,3133.7,1.08773538]
[1768305071557,1.08773538,3134.7,3133.7,1.08773538]
[1768305071761,1.08773538,3134.7,3133.9,1.08773538]
[1768305074373,1.08773538,3134.8,3133.9,1.08773538]
[1768305074673,1.08773538,3134.8,3133.4,0.30480801]
[1768305074873,1.08773538,3134.8,3133.9,1.08773538]
[1768305075273,0.00376838,3134.9,3133.7,0.14104135]
[1768305075466,0.00376838,3134.9,3134.0,1.08773538]
[1768305075771,1.08773538,3134.8,3134.0,1.08773538]
[1768305076478,1.08773538,3134.8,3133.9,1.08773538]
[1768305076777,1.08773538,3134.8,3133.7,1.08773538]
[1768305081077,0.13829387,3134.9,3133.9,1.08773538]
[1768305081265,0.13829387,3134.9,3133.7,1.08726672]
[1768305082976,0.13829387,3134.9,3133.7,1.24699672]
[1768305083167,0.00376838,3134.9,3133.7,1.24699672]
[1768305085879,0.00376838,3134.9,3133.7,0.15973]
[1768305086179,0.00376838,3134.9,3133.7,1.24699672]
[1768305118309,0.00376838,3134.9,3133.7,2.62099672]
[1768305122625,0.00376838,3134.9,3133.7,0.15973]
[1768305122827,1.0910351,3134.9,3133.7,1.53473]
[1768305125330,1.0910351,3134.9,3133.7,0.15973]
[1768305125829,1.0910351,3134.9,3133.6,0.14104135]
[1768305126134,1.23320785,3134.9,3133.4,1.08726672]
[1768305126321,1.23320785,3134.9,3133.4,2.46226672]
[1768305127932,0.14217275,3134.8,3133.4,2.46226672]
[1768305129231,0.14217275,3134.8,3133.4,1.375]
[1768305130538,0.14217275,3134.8,3133.3,1.08726672]
[1768305130829,0.14217275,3134.8,3133.4,1.375]
[1768305133833,1.08726672,3134.7,3133.3,1.375]
[1768305134331,1.08726672,3134.7,3133.2,1.38754155]
[1768305134538,1.08726672,3134.4,3133.2,1.38754155]
[1768305134738,1.22943947,3134.7,3133.2,1.38754155]
[1768305136037,0.14217275,3134.7,3133.3,0.14373108]
[1768305136231,0.14217275,3134.7,3133.5,1.08726672]
[1768305136740,0.14217275,3134.7,3133.3,0.14373108]
[1768305137236,1.08726672,3134.2,3133.2,0.00295619]
[1768305137434,1.22230872,3134.5,3133.2,0.00295619]
[1768305138039,0.15967,3134.8,3133.2,1.23395399]
[1768305138230,0.91522459,3134.7,3133.2,1.23395399]
[1768305138428,0.91522459,3134.6,3133.2,1.23395399]
[1768305138638,0.91522459,3134.5,3133.2,1.23395399]
[1768305138833,0.294712,3134.8,3133.2,1.23395399]
[1768305139040,0.91493408,3134.7,3133.2,1.23395399]
[1768305139235,0.91493408,3134.6,3133.2,1.23395399]
[1768305139436,0.294712,3134.8,3133.2,1.23395399]
[1768305139637,0.91456854,3134.7,3133.2,1.23395399]
[1768305139833,0.91456854,3134.6,3133.2,1.23395399]
[1768305140031,0.294712,3134.8,3133.2,1.23395399]
[1768305140235,0.9145636,3134.7,3133.2,1.23395399]
[1768305140443,0.9145636,3134.6,3133.2,1.23395399]
[1768305140744,0.294712,3134.8,3133.2,1.23395399]
[1768305140940,0.91442027,3134.7,3133.2,1.23395399]
[1768305141139,0.91442027,3134.6,3133.2,1.23395399]
[1768305141337,0.294712,3134.8,3133.2,1.23395399]
[1768305141543,0.91424115,3134.7,3133.2,1.23395399]
[1768305141745,0.91424115,3134.6,3133.2,1.23395399]
[1768305141944,0.294712,3134.8,3133.2,1.23395399]
[1768305142145,2.00150746,3134.7,3133.2,1.23395399]
[1768305142345,0.91424074,3134.6,3133.2,1.23395399]
[1768305142645,1.08726672,3134.7,3133.2,1.23395399]
[1768305142947,0.91412603,3134.6,3133.2,1.23395399]
[1768305143148,0.294712,3134.8,3133.2,1.23395399]
[1768305143346,1.08757893,3134.5,3133.5,1.08757893]
[1768305150550,1.08757893,3134.4,3133.5,1.08757893]
[1768305153751,0.135042,3134.7,3133.5,1.08757893]
[1768305154056,1.08757893,3134.4,3133.5,1.08757893]
[1768305157656,1.08757893,3133.8,3133.2,0.00295619]
[1768305157953,0.13313159,3134.3,3132.6,4.02443636]
[1768305157954,0.13313159,3134.3,3132.7,0.14631085]
[1768305158155,1.08757893,3134.0,3133.0,1.08757893]
[1768305158757,1.08757893,3134.0,3133.0,1.09146134]
[1768305161956,0.13313159,3134.3,3133.4,1.08757893]
[1768305162168,1.08757893,3134.2,3133.2,1.08757893]
[1768305162358,1.08757893,3134.0,3133.2,1.08757893]
[1768305164066,0.13313159,3134.3,3133.2,1.08757893]
[1768305164266,1.08757893,3134.1,3133.2,1.08757893]
[1768305169462,1.08757893,3134.2,3133.2,1.08757893]
[1768305170065,1.08757893,3134.0,3133.2,1.08757893]
[1768305170362,1.08757893,3134.0,3133.0,1.09146134]
[1768305172466,0.15969,3134.5,3133.2,1.08757893]
[1768305172770,1.08757893,3134.1,3133.2,1.08757893]
[1768305178471,1.08757893,3134.1,3133.1,1.08757893]
[1768305180682,1.08757893,3134.2,3133.3,1.08757893]
[1768305183382,0.13313159,3134.4,3133.3,1.08757893]
[1768305183580,1.08757893,3134.2,3133.3,1.08757893]
[1768305184181,0.13313159,3134.4,3133.3,1.08757893]
[1768305184382,2.0026028,3134.3,3133.3,1.08757893]
[1768305184684,1.08757893,3134.3,3133.3,1.08757893]
[1768305189783,1.08757893,3134.3,3133.0,0.15019326]
[1768305189985,1.08757893,3134.3,3133.3,1.08757893]
[1768305201392,0.14018952,3134.8,3133.3,1.08757893]
[1768305201594,1.08757893,3134.2,3133.3,1.08757893]
[1768305202494,1.08757893,3134.3,3133.3,1.08757893]
[1768305203287,1.08768503,3134.5,3133.0,1.23787829]
[1768305203493,0.91627794,3134.4,3133.0,1.23787829]
[1768305203694,0.91627794,3134.3,3133.0,1.23787829]
[1768305203886,1.08768503,3134.5,3133.0,1.23787829]
[1768305204093,0.91627798,3134.4,3133.0,1.23787829]
[1768305204287,0.91627798,3134.3,3133.0,1.23787829]
[1768305204590,1.08768503,3134.5,3133.0,1.23787829]
[1768305204792,0.91629602,3134.4,3133.0,1.23787829]
[1768305204993,0.91629602,3134.3,3133.0,1.23787829]
[1768305205195,1.08768503,3134.5,3133.0,1.23787829]
[1768305205393,0.91632103,3134.4,3133.0,1.23787829]
[1768305205593,0.91632103,3134.3,3133.0,1.23787829]
[1768305205899,1.08768503,3134.5,3133.0,1.23787829]
[1768305206089,0.916321,3134.4,3133.0,1.23787829]
[1768305206390,0.916321,3134.3,3133.0,1.23787829]
[1768305206590,1.08768503,3134.5,3133.0,1.23787829]
[1768305206790,0.91636075,3134.4,3133.0,1.23787829]
[1768305206990,0.91636075,3134.3,3133.0,1.23787829]
[1768305207190,1.08768503,3134.5,3133.0,1.23787829]
[1768305207391,0.91636241,3134.4,3133.0,1.23787829]
[1768305207601,0.91636241,3134.3,3133.0,1.23787829]
[1768305207799,1.08768503,3134.5,3133.0,1.23787829]
[1768305208000,0.91640543,3134.4,3133.0,1.23787829]
[1768305208198,0.91640543,3134.3,3133.0,1.23787829]
[1768305208400,1.08768503,3134.5,3133.0,1.23787829]
[1768305208700,0.91646607,3134.4,3133.0,1.23787829]
[1768305208896,0.91646607,3134.3,3133.0,1.23787829]
[1768305209097,1.08768503,3134.5,3133.0,1.23787829]
[1768305209396,0.91646621,3134.4,3133.0,1.23787829]
[1768305209597,0.91646621,3134.3,3133.0,1.23787829]
[1768305209898,1.22787455,3134.5,3133.0,1.23787829]
[1768305210094,0.91657104,3134.4,3133.0,1.23787829]
[1768305210295,0.91657104,3134.3,3133.0,1.23787829]
[1768305210494,1.22787455,3134.5,3133.0,1.23787829]
[1768305210693,0.91657059,3134.4,3133.0,1.23787829]
[1768305210898,0.91657059,3134.3,3133.0,1.23787829]
[1768305217112,1.08768503,3134.1,3133.0,0.00388241]
[1768305217610,0.14252249,3134.2,3133.0,0.00388241]
[1768305233330,0.14252249,3134.2,3133.0,1.09156744]
[1768305238939,0.14252249,3134.6,3133.3,1.08768503]
[1768305239140,0.91687391,3134.5,3133.3,1.08768503]
[1768305239336,0.14252249,3134.6,3133.3,1.08768503]
[1768305240150,0.14252249,3134.6,3133.2,0.15975]
[1768305240445,0.14252249,3134.6,3133.3,1.08768503]
[1768305242534,0.14252249,3134.6,3133.2,0.3015613]
[1768305242535,0.00376838,3134.9,3133.6,1.08768503]
[1768305242934,0.00376838,3134.9,3134.0,1.08768503]
[1768305243945,0.00376838,3134.9,3133.8,1.38921633]
[1768305244447,0.00376838,3134.9,3133.8,1.24740503]
[1768305245450,0.00376838,3134.9,3133.9,0.15972]
[1768305248553,0.00376838,3134.9,3134.1,1.08768503]
[1768305248944,0.00376838,3134.9,3134.1,1.22982293]
[1768305249348,0.00376838,3134.9,3134.1,0.1421379]
[1768305249550,0.00376838,3134.9,3134.2,1.08768503]
[1768305251157,0.13638267,3135.5,3134.2,1.08768503]
[1768305252161,0.13898965,3135.5,3134.2,1.08768503]
[1768305255148,0.13898965,3135.5,3134.2,1.24738503]
[1768305256252,0.00260698,3135.5,3134.2,1.24738503]
[1768305256554,0.00260698,3135.5,3134.3,0.14616903]
[1768305256749,0.00260698,3135.5,3134.5,1.08768503]
[1768305257555,0.00260698,3135.5,3134.7,1.08768503]
[1768305257758,0.14639346,3135.9,3134.5,1.39354406]
[1768305258358,0.14639346,3135.9,3134.5,0.30585903]
[1768305258553,0.14639346,3136.3,3134.6,0.14616903]
[1768305258757,1.08768503,3136.1,3134.6,0.14616903]
[1768305259363,1.23407849,3136.1,3134.6,0.14616903]
[1768305261064,1.23407849,3136.1,3134.6,0.30584903]
[1768305261360,0.14639346,3136.1,3134.6,0.30584903]
[1768305261661,0.14639346,3136.1,3134.9,1.08768503]
[1768305263868,0.14639346,3136.1,3134.8,1.08768503]
[1768305264768,0.14639346,3136.1,3134.8,1.24735503]
[1768305265462,1.08648953,3136.0,3135.0,1.08648953]
[1768305267465,1.08648953,3135.8,3134.9,1.08648953]
[1768305267655,1.08648953,3135.8,3134.8,0.15967]
[1768305267862,1.08648953,3135.8,3134.8,1.24615953]
[1768305270264,0.14639346,3136.1,3134.8,1.24615953]
[1768305270459,1.08648953,3135.8,3134.8,1.24615953]
[1768305275365,0.14639346,3136.1,3134.8,1.24615953]
[1768305275571,1.08648953,3135.8,3134.8,1.24615953]
[1768305279669,0.14639346,3136.1,3135.0,1.08648953]
[1768305279875,1.08648953,3136.0,3135.0,1.08648953]
[1768305281177,0.14639346,3136.1,3135.0,1.24614953]
[1768305281370,0.14639346,3136.1,3135.2,1.08648953]
[1768305281571,0.14639346,3136.1,3135.2,1.08920673]
[1768305281973,1.08648953,3136.2,3135.2,1.08920673]
[1768305283185,0.00231199,3136.3,3135.2,1.08920673]
[1768305283375,1.08880152,3136.3,3135.4,1.08648953]
[1768305286886,0.00231199,3136.3,3135.4,1.08648953]
[1768305290984,1.08648953,3136.2,3135.4,1.08648953]
[1768305293886,1.08880152,3136.3,3135.4,1.08648953]
[1768305294089,0.00231199,3136.3,3135.7,1.08648953]
[1768305294275,1.08648953,3136.5,3135.7,1.08648953]
[1768305294480,1.38997898,3136.9,3135.7,1.08648953]
[1768305294692,1.08648953,3136.5,3135.7,1.08648953]
[1768305294880,1.08648953,3136.7,3135.7,1.08648953]
[1768305295082,1.08648953,3136.7,3135.9,1.08648953]